fUSD/lending_fUSD_20260401
["ID","MTS","AMOUNT","RATE_DAILY","PERIOD"]
[419192927,1775014257134,-151.0,0.000336,7]
[419192928,1775014257143,-151.0,0.000336,7]
[419192929,1775014257152,-151.0,0.000336,7]
[419192930,1775014257161,-316.209546,0.000336,7]
[419192931,1775014257171,-151.0,0.000336,7]
[419192932,1775014257180,-316.209546,0.000336,7]
[419192933,1775014257189,-372.802333,0.000336,7]
[419192934,1775014257198,-151.0,0.000336,7]
[419192935,1775014257208,-151.0,0.000336,7]
[419192936,1775014257217,-316.209546,0.000336,7]
[419192937,1775014257227,-372.802333,0.000336,7]
[419192938,1775014257236,-151.0,0.000336,7]
[419192939,1775014257245,-316.209546,0.000336,7]
[419192940,1775014257254,-372.802333,0.000336,7]
[419192941,1775014257263,-700.068793,0.000336,7]
[419192942,1775014257273,-225.821895,0.000336,7]
[419192943,1775014257282,-372.802333,0.000336,7]
[419192944,1775014257291,-700.068793,0.000336,7]
[419192945,1775014257300,-2106.990483,0.000336,7]
[419192946,1775014257311,-700.068793,0.000336,7]
[419192947,1775014257320,-1068.797159,0.000336,7]
[419192948,1775014257329,-2106.990483,0.000336,7]
[419192949,1775014257338,-700.068793,0.000336,7]
[419192950,1775014257348,-2106.990483,0.000336,7]
[419192951,1775014257358,-1068.797159,0.000336,7]
[419192952,1775014257367,-2106.990483,0.000336,7]
[419192953,1775014257376,-296.97395,0.000336,7]
[419192954,1775014257386,-1068.797159,0.000336,7]
[419192955,1775014257395,-1068.797159,0.000336,7]
[419192956,1775014257404,-151.0,0.000336,7]
[419192957,1775014257414,-151.0,0.000336,7]
[419192958,1775014257423,-800.0,0.00033604,21]
[419192959,1775014257432,-1000.0,0.00033606,2]
[419192960,1775014257442,-1090.29780143,0.00033659,2]
[419192961,1775014257451,-1000.0,0.00033666,2]
[419192962,1775014257460,-500.0,0.000337,7]
[419192963,1775014257469,-500.0,0.000337,7]
[419192964,1775014257479,-500.0,0.000337,7]
[419192965,1775014257488,-500.0,0.000337,7]
[419192966,1775014257498,-500.0,0.000337,7]
[419192967,1775014257507,-500.0,0.000337,7]
[419192968,1775014257516,-500.0,0.000337,7]
[419192969,1775014257526,-500.0,0.000337,7]
[419192970,1775014257535,-500.0,0.000337,7]
[419192971,1775014257544,-500.0,0.000337,7]
[419192972,1775014257554,-500.0,0.000337,7]
[419192973,1775014257563,-500.0,0.000337,7]
[419192974,1775014257573,-500.0,0.000337,7]
[419192975,1775014257582,-500.0,0.000337,7]
[419192976,1775014257592,-500.0,0.000337,7]
[419192977,1775014257602,-500.0,0.000337,7]
[419192978,1775014257612,-500.0,0.000337,7]
[419192979,1775014257622,-500.0,0.000337,7]
[419192980,1775014257631,-500.0,0.000337,7]
[419192981,1775014257640,-500.0,0.000337,7]
[419192982,1775014257649,-500.0,0.000337,7]
[419192983,1775014257659,-500.0,0.000337,7]
[419192984,1775014257669,-500.0,0.000337,7]
[419192985,1775014257679,-500.0,0.000337,7]
[419192986,1775014257689,-500.0,0.000337,7]
[419192987,1775014257698,-500.0,0.000337,7]
[419192988,1775014257708,-500.0,0.000337,7]
[419192989,1775014257718,-500.0,0.000337,7]
[419192990,1775014257727,-500.0,0.000337,7]
[419192991,1775014257736,-500.0,0.000337,7]
[419192992,1775014257746,-500.0,0.000337,7]
[419192993,1775014257755,-500.0,0.000337,7]
[419192994,1775014257766,-500.0,0.000337,7]
[419192995,1775014257775,-500.0,0.000337,7]
[419192996,1775014257784,-500.0,0.000337,7]
[419192997,1775014257794,-500.0,0.000337,7]
[419192998,1775014257805,-500.0,0.000337,7]
[419192999,1775014257815,-500.0,0.000337,7]
[419193000,1775014257824,-500.0,0.000337,7]
[419193001,1775014257833,-500.0,0.000337,7]
[419193002,1775014257843,-500.0,0.000337,7]
[419193003,1775014257852,-500.0,0.000337,7]
[419193004,1775014257862,-500.0,0.000337,7]
[419193005,1775014257871,-500.0,0.000337,7]
[419193006,1775014257881,-500.0,0.000337,7]
[419193007,1775014257890,-500.0,0.000337,7]
[419193008,1775014257899,-500.0,0.000337,7]
[419193009,1775014257908,-264.73,0.000337,7]
[419193010,1775014257918,-500.0,0.000337,7]
[419193011,1775014257927,-500.0,0.000337,7]
[419193012,1775014257936,-500.0,0.000337,7]
[419193013,1775014257945,-500.0,0.000337,7]
[419193014,1775014257954,-500.0,0.000337,7]
[419193015,1775014257963,-500.0,0.000337,7]
[419193016,1775014257974,-500.0,0.000337,7]
[419193017,1775014257984,-500.0,0.000337,7]
[419193018,1775014257994,-500.0,0.000337,7]
[419193019,1775014258003,-500.0,0.000337,7]
[419193020,1775014258012,-500.0,0.000337,7]
[419193021,1775014258022,-500.0,0.000337,7]
[419193022,1775014258032,-500.0,0.000337,7]
[419193023,1775014258042,-500.0,0.000337,7]
[419193024,1775014258051,-500.0,0.000337,7]
[419193025,1775014258060,-500.0,0.000337,7]
[419193026,1775014258070,-500.0,0.000337,7]
[419193027,1775014258080,-500.0,0.000337,7]
[419193028,1775014258089,-500.0,0.000337,7]
[419193029,1775014258099,-500.0,0.000337,7]
[419193030,1775014258109,-500.0,0.000337,7]
[419193031,1775014258118,-520.06,0.000337,7]
[419193032,1775014258127,-200.0,0.000337,13]
[419193033,1775014258137,-367.26,0.00033732,120]
[419193034,1775014258146,-1014.36,0.0003375,120]
[419193035,1775014258155,-1000.0,0.0003385,14]
[419193036,1775014258164,-1300.0,0.00033878,21]
[419193037,1775014258174,-251.97423471,0.000339,120]
[419193038,1775014258183,-1769.38656072,0.000339,120]
[419193039,1775014258192,-385.19719108,0.000339,120]
[419193040,1775014258202,-167.63309834,0.000339,120]
[419193041,1775014258211,-333.19574259,0.000339,120]
[419193042,1775014258221,-282.70447581,0.000339,120]
[419193043,1775014258230,-367.26,0.00033911,120]
[419193044,1775014258239,-1000.0,0.00033913,2]
[419193045,1775014258248,-334.32,0.00033972,120]
[419193046,1775014258258,-1444.0,0.00033973,120]
[419193047,1775014258267,-27980.39,0.00034,2]
[419193048,1775014258276,-10141.86,0.00034,30]
[419193049,1775014258286,-8589.43,0.00034,30]
[419193050,1775014258295,-7918.67,0.00034,30]
[419193051,1775014258304,-214.3,0.00034,10]
[419193052,1775014258313,-3977.79,0.00034,7]
[419193053,1775014258322,-300.0,0.00034,2]
[419193054,1775014258332,-1014.36,0.00034038,120]
[419193055,1775014258341,-150.0,0.00034046,2]
[419193056,1775014258350,-150.0,0.00034049,2]
[419193057,1775014258360,-367.26,0.00034089,120]
[419193058,1775014258369,-150.0,0.00034149,2]
[419193059,1775014258378,-1000.0,0.00034192,2]
[419193060,1775014258388,-2022.84430341,0.00034241,6]
[419193061,1775014258397,-367.26,0.00034268,120]
[419193062,1775014258406,-150.0,0.00034299,2]
[419193063,1775014258415,-27980.39,0.000343,2]
[419193064,1775014258424,-1014.36,0.00034327,120]
[419193065,1775014258433,-2000.0,0.0003435,53]
[419193066,1775014258443,-2000.0,0.0003435,53]
[419193067,1775014258452,-2000.0,0.0003435,53]
[419193068,1775014258463,-2000.0,0.0003435,53]
[419193069,1775014258473,-128106.53871111,0.0003436,2]
[419193070,1775014258483,-500.0,0.00034384,30]
[419193071,1775014258492,-1133.0,0.00034384,30]
[419193072,1775014258501,-1046.0,0.00034384,30]
[419193073,1775014258510,-5328.0,0.00034384,30]
[419193074,1775014258520,-1283.0,0.00034384,30]
[419193075,1775014258530,-569.0,0.00034384,30]
[419193076,1775014258540,-8589.43,0.000344,30]
[419193077,1775014258549,-10141.86,0.000344,30]
[419193078,1775014258559,-7918.67,0.000344,30]
[419193079,1775014258568,-270.8,0.00034411,60]
[419193080,1775014258577,-150.0,0.00034422,2]
[419193081,1775014258586,-800.0,0.00034426,21]
[419193082,1775014258595,-1800.0,0.00034444,30]
[419193083,1775014258605,-1800.0,0.00034444,30]
[419193084,1775014258614,-1800.0,0.00034444,30]
[419193085,1775014258623,-1800.0,0.00034444,30]
[419193086,1775014258632,-1800.0,0.00034444,30]
[419193087,1775014258642,-1800.0,0.00034444,30]
[419193088,1775014258651,-1800.0,0.00034444,30]
[419193089,1775014258660,-1800.0,0.00034444,30]
[419193090,1775014258669,-1800.0,0.00034444,30]
[419193091,1775014258681,-1800.0,0.00034444,30]
[419193092,1775014258691,-1800.0,0.00034444,30]
[419193093,1775014258701,-1800.0,0.00034444,30]
[419193094,1775014258711,-202.0,0.00034444,30]
[419193095,1775014258720,-367.26,0.00034447,120]
[419193096,1775014258729,-1156.41848616,0.00034499,7]
[419193097,1775014258738,-1199.20597015,0.00034499,7]
[419193098,1775014258748,-1243.57659104,0.00034499,7]
[419193099,1775014258757,-1289.58892491,0.00034499,7]
[419193100,1775014258766,-1337.30371513,0.00034499,7]
[419193101,1775014258776,-1213.548031,0.00034499,7]
[419193102,1775014258786,-504.0,0.00034515,20]
[419193103,1775014258795,-334.32,0.0003452,120]
[419193104,1775014258804,-193.89365972,0.00034538,7]
[419193105,1775014258813,-150.0,0.0003456,2]
[419193106,1775014258822,-150.0,0.00034562,2]
[419193107,1775014258831,-1800.0,0.00034575,2]
[419193108,1775014258841,-1800.0,0.00034575,2]
[419193109,1775014258850,-1800.0,0.00034575,2]
[419193110,1775014258859,-1800.0,0.00034575,2]
[419193111,1775014258868,-1800.0,0.00034575,2]
[419193112,1775014258878,-1800.0,0.00034575,2]
[419193113,1775014258887,-1800.0,0.00034575,2]
[419193114,1775014258897,-1800.0,0.00034575,2]
[419193115,1775014258906,-1800.0,0.00034575,2]
[419193116,1775014258915,-1800.0,0.00034575,2]
[419193117,1775014258924,-1800.0,0.00034575,2]
[419193118,1775014258934,-1800.0,0.00034575,2]
[419193119,1775014258943,-201.0,0.00034575,2]
[419193120,1775014258952,-151.0,0.00034575,7]
[419193121,1775014258962,-253.217047,0.00034575,7]
[419193122,1775014258971,-302.093611,0.00034575,7]
[419193123,1775014258981,-151.0,0.00034575,7]
[419193124,1775014258991,-151.0,0.00034575,7]
[419193125,1775014259000,-253.217047,0.00034575,7]
[419193126,1775014259009,-151.0,0.00034575,7]
[419193127,1775014259019,-302.093611,0.00034575,7]
[419193128,1775014259028,-151.0,0.00034575,7]
[419193129,1775014259038,-253.217047,0.00034575,7]
[419193130,1775014259047,-151.0,0.00034575,7]
[419193131,1775014259056,-151.0,0.00034575,7]
[419193132,1775014259065,-302.093611,0.00034575,7]
[419193133,1775014259074,-151.0,0.00034575,7]
[419193134,1775014259083,-151.0,0.00034575,7]
[419193135,1775014259092,-253.217047,0.00034575,7]
[419193136,1775014259101,-1313.53875,0.00034575,7]
[419193137,1775014259111,-151.0,0.00034575,7]
[419193138,1775014259121,-485.224635,0.00034575,7]
[419193139,1775014259130,-302.093611,0.00034575,7]
[419193140,1775014259141,-163.226364,0.00034575,7]
[419193141,1775014259150,-151.0,0.00034575,7]
[419193142,1775014259160,-1313.53875,0.00034575,7]
[419193143,1775014259170,-485.224635,0.00034575,7]
[419193144,1775014259179,-151.0,0.00034575,7]
[419193145,1775014259188,-157.449029,0.00034575,7]
[419193146,1775014259198,-1927.168856,0.00034575,7]
[419193147,1775014259207,-485.224635,0.00034575,7]
[419193148,1775014259217,-1313.53875,0.00034575,7]
[419193149,1775014259227,-151.0,0.00034575,7]
[419193150,1775014259236,-157.449029,0.00034575,7]
[419193151,1775014259246,-1927.168856,0.00034575,7]
[419193152,1775014259255,-485.224635,0.00034575,7]
[419193153,1775014259265,-1313.53875,0.00034575,7]
[419193154,1775014259274,-157.449029,0.00034575,7]
[419193155,1775014259284,-150.0,0.00034581,2]
[419193156,1775014259293,-518.5,0.00034599,30]
[419193157,1775014259303,-500.0,0.00034599,30]
[419193158,1775014259313,-539.24,0.00034599,30]
[419193159,1775014259323,-500.0,0.00034599,30]
[419193160,1775014259332,-2258.00809214,0.00034599,30]
[419193161,1775014259342,-200.0,0.00034599,30]
[419193162,1775014259351,-7142.856,0.00034599,30]
[419193163,1775014259371,-1068.11,0.00034599,30]
[419193164,1775014259382,-151.0,0.00034599,30]
[419193165,1775014259393,-500.0,0.00034599,30]
[419193166,1775014259402,-156.587,0.00034599,30]
[419193167,1775014259413,-156.587,0.00034599,30]
[419193168,1775014259422,-500.0,0.00034599,30]
[419193169,1775014259433,-2043.95937522,0.00034599,30]
[419193170,1775014259443,-151.0,0.00034599,30]
[419193171,1775014259454,-151.0,0.00034599,30]
[419193172,1775014259464,-200.0,0.00034599,30]
[419193173,1775014259473,-160.0,0.00034599,30]
[419193174,1775014259483,-151.0,0.00034599,30]
[419193175,1775014259494,-156.587,0.00034599,30]
[419193176,1775014259504,-500.0,0.00034599,30]
[419193177,1775014259513,-500.0,0.00034599,30]
[419193178,1775014259523,-518.5,0.00034599,30]
[419193179,1775014259533,-156.587,0.00034599,30]
[419193180,1775014259543,-151.0,0.00034599,30]
[419193181,1775014259552,-151.0,0.00034599,30]
[419193182,1775014259562,-1000.0,0.00034599,30]
[419193183,1775014259571,-1037.0,0.00034599,30]
[419193184,1775014259581,-1075.369,0.00034599,30]
[419193185,1775014259592,-260.287,0.00034599,30]
[419193186,1775014259601,-1115.157653,0.00034599,30]
[419193187,1775014259612,-250.0,0.00034599,30]
[419193188,1775014259622,-151.0,0.00034599,7]
[419193189,1775014259633,-454.900784,0.00034599,7]
[419193190,1775014259643,-262.000422,0.00034599,7]
[419193191,1775014259653,-296.09292,0.00034599,7]
[419193192,1775014259664,-454.900784,0.00034599,7]
[419193193,1775014259673,-250.535889,0.00034599,7]
[419193194,1775014259683,-262.000422,0.00034599,7]
[419193195,1775014259692,-296.09292,0.00034599,7]
[419193196,1775014259701,-839.001389,0.00034599,7]
[419193197,1775014259711,-273.873245,0.00034599,7]
[419193198,1775014259720,-151.0,0.00034599,7]
[419193199,1775014259730,-454.900784,0.00034599,7]
[419193200,1775014259740,-250.535889,0.00034599,7]
[419193201,1775014259749,-151.0,0.00034599,7]
[419193202,1775014259758,-262.000422,0.00034599,7]
[419193203,1775014259767,-296.09292,0.00034599,7]
[419193204,1775014259776,-839.001389,0.00034599,7]
[419193205,1775014259788,-151.0,0.00034599,7]
[419193206,1775014259796,-2959.597666,0.00034599,7]
[419193207,1775014259805,-273.873245,0.00034599,7]
[419193208,1775014259815,-175.599481,0.00034599,7]
[419193209,1775014259824,-250.535889,0.00034599,7]
[419193210,1775014259834,-454.900784,0.00034599,7]
[419193211,1775014259843,-248.77608,0.00034599,7]
[419193212,1775014259853,-166.099322,0.00034599,7]
[419193213,1775014259862,-296.09292,0.00034599,7]
[419193214,1775014259871,-839.001389,0.00034599,7]
[419193215,1775014259880,-2959.597666,0.00034599,7]
[419193216,1775014259891,-273.873245,0.00034599,7]
[419193217,1775014259902,-175.599481,0.00034599,7]
[419193218,1775014259913,-250.535889,0.00034599,7]
[419193219,1775014259924,-196.147739,0.00034599,7]
[419193220,1775014259935,-166.099322,0.00034599,7]
[419193221,1775014259944,-2959.597666,0.00034599,7]
[419193222,1775014259954,-485.818484,0.00034599,7]
[419193223,1775014259965,-2296.649879,0.00034599,7]
[419193224,1775014259976,-175.599481,0.00034599,7]
[419193225,1775014259986,-196.147739,0.00034599,7]
[419193226,1775014259996,-273.873245,0.00034599,7]
[419193227,1775014260007,-166.099322,0.00034599,7]
[419193228,1775014260016,-262.000422,0.00034599,7]
[419193229,1775014260025,-3080.917359,0.00034599,7]
[419193230,1775014260035,-2959.597666,0.00034599,7]
[419193231,1775014260044,-170.636045,0.00034599,7]
[419193232,1775014260053,-175.599481,0.00034599,7]
[419193233,1775014260063,-2296.649879,0.00034599,7]
[419193234,1775014260072,-485.818484,0.00034599,7]
[419193235,1775014260081,-196.147739,0.00034599,7]
[419193236,1775014260091,-892.253268,0.00034599,7]
[419193237,1775014260100,-166.099322,0.00034599,7]
[419193238,1775014260109,-151.0,0.00034599,7]
[419193239,1775014260118,-3080.917359,0.00034599,7]
[419193240,1775014260127,-206.472759,0.00034599,7]
[419193241,1775014260136,-170.636045,0.00034599,7]
[419193242,1775014260146,-485.818484,0.00034599,7]
[419193243,1775014260155,-2296.649879,0.00034599,7]
[419193244,1775014260164,-892.253268,0.00034599,7]
[419193245,1775014260174,-196.147739,0.00034599,7]
[419193246,1775014260183,-839.001389,0.00034599,7]
[419193247,1775014260193,-151.0,0.00034599,7]
[419193248,1775014260208,-3080.917359,0.00034599,7]
[419193249,1775014260217,-206.472759,0.00034599,7]
[419193250,1775014260227,-485.818484,0.00034599,7]
[419193251,1775014260236,-2296.649879,0.00034599,7]
[419193252,1775014260246,-170.636045,0.00034599,7]
[419193253,1775014260255,-892.253268,0.00034599,7]
[419193254,1775014260265,-151.0,0.00034599,7]
[419193255,1775014260275,-3080.917359,0.00034599,7]
[419193256,1775014260285,-206.472759,0.00034599,7]
[419193257,1775014260294,-170.636045,0.00034599,7]
[419193258,1775014260304,-892.253268,0.00034599,7]
[419193259,1775014260314,-314.772131,0.00034599,7]
[419193260,1775014260323,-175.691598,0.00034599,7]
[419193261,1775014260333,-206.472759,0.00034599,7]
[419193262,1775014260342,-314.772131,0.00034599,7]
[419193263,1775014260353,-175.691598,0.00034599,7]
[419193264,1775014260362,-560.669219,0.00034599,7]
[419193265,1775014260372,-314.772131,0.00034599,7]
[419193266,1775014260381,-175.691598,0.00034599,7]
[419193267,1775014260391,-557.258778,0.00034599,7]
[419193268,1775014260401,-4589.596736,0.00034599,7]
[419193269,1775014260411,-560.669219,0.00034599,7]
[419193270,1775014260421,-314.772131,0.00034599,7]
[419193271,1775014260431,-175.691598,0.00034599,7]
[419193272,1775014260442,-557.258778,0.00034599,7]
[419193273,1775014260452,-178.645392,0.00034599,7]
[419193274,1775014260463,-560.669219,0.00034599,7]
[419193275,1775014260473,-4589.596736,0.00034599,7]
[419193276,1775014260483,-557.258778,0.00034599,7]
[419193277,1775014260493,-178.645392,0.00034599,7]
[419193278,1775014260503,-560.669219,0.00034599,7]
[419193279,1775014260515,-4589.596736,0.00034599,7]
[419193280,1775014260525,-557.258778,0.00034599,7]
[419193281,1775014260535,-178.645392,0.00034599,7]
[419193282,1775014260545,-4589.596736,0.00034599,7]
[419193283,1775014260555,-178.645392,0.00034599,7]
[419193284,1775014260564,-151.0,0.00034599,7]
[419193285,1775014260575,-151.0,0.00034599,7]
[419193286,1775014260585,-353.860164,0.00034599,7]
[419193287,1775014260595,-353.860164,0.00034599,7]
[419193288,1775014260605,-151.0,0.00034599,7]
[419193289,1775014260615,-353.860164,0.00034599,7]
[419193290,1775014260624,-155.132928,0.00034599,7]
[419193291,1775014260868,-155.224014,0.00034599,7]
[419193292,1775014260878,-2349.593397,0.00034599,7]
[419193293,1775014260889,-353.860164,0.00034599,7]
[419193294,1775014260899,-151.0,0.00034599,7]
[419193295,1775014260911,-2349.593397,0.00034599,7]
[419193296,1775014260921,-151.0,0.00034599,7]
[419193297,1775014260932,-151.0,0.00034599,7]
[419193298,1775014260942,-2349.593397,0.00034599,7]
[419193299,1775014260951,-151.0,0.00034599,7]
[419193300,1775014260965,-151.0,0.00034599,7]
[419193301,1775014260975,-2349.593397,0.00034599,7]
[419193302,1775014260985,-268.345093,0.00034599,7]
[419193303,1775014260995,-268.345093,0.00034599,7]
[419193304,1775014261005,-268.345093,0.00034599,7]
[419193305,1775014261015,-268.345093,0.00034599,7]
[419193306,1775014261025,-27980.39,0.000346,2]
[419193307,1775014261035,-150.0,0.000346,2]
[419193308,1775014261045,-150.0,0.000346,2]
[419193309,1775014261054,-150.0,0.000346,2]
[419193310,1775014261064,-1524.0,0.00034615,120]
[419193311,1775014261074,-1524.0,0.00034615,120]
[419193312,1775014261084,-1524.0,0.00034615,120]
[419193313,1775014261094,-152.0,0.00034615,120]
[419193314,1775014261103,-1524.0,0.00034615,120]
[419193315,1775014261113,-152.0,0.00034615,120]
[419193316,1775014261123,-1524.0,0.00034615,120]
[419193317,1775014261133,-152.0,0.00034615,120]
[419193318,1775014261143,-1524.0,0.00034615,120]
[419193319,1775014261153,-152.0,0.00034615,120]
[419193320,1775014261164,-1524.0,0.00034615,120]
[419193321,1775014261177,-225.28862955,0.00034615,120]
[419193322,1775014261186,-1524.0,0.00034615,120]
[419193323,1775014261197,-1524.0,0.00034615,120]
[419193324,1775014261207,-1524.0,0.00034615,120]
[419193325,1775014261217,-1524.0,0.00034615,120]
[419193326,1775014261227,-1524.0,0.00034615,120]
[419193327,1775014261236,-153.67541717,0.00034615,120]
[419193328,1775014261246,-1524.0,0.00034615,120]
[419193329,1775014261256,-1524.0,0.00034615,120]
[419193330,1775014261266,-1524.0,0.00034615,120]
[419193331,1775014261275,-1524.0,0.00034615,120]
[419193332,1775014261286,-1524.0,0.00034615,120]
[419193333,1775014261297,-1524.0,0.00034615,120]
[419193334,1775014261308,-1524.0,0.00034615,120]
[419193335,1775014261317,-1524.0,0.00034615,120]
[419193336,1775014261328,-1524.0,0.00034615,120]
[419193337,1775014261338,-1524.0,0.00034615,120]
[419193338,1775014261348,-1524.0,0.00034615,120]
[419193339,1775014261358,-1524.0,0.00034615,120]
[419193340,1775014261368,-1524.0,0.00034615,120]
[419193341,1775014261378,-1524.0,0.00034615,120]
[419193342,1775014261388,-1524.0,0.00034615,120]
[419193343,1775014261397,-1524.0,0.00034615,120]
[419193344,1775014261407,-1524.0,0.00034615,120]
[419193345,1775014261417,-1524.0,0.00034615,120]
[419193346,1775014261426,-1524.0,0.00034615,120]
[419193347,1775014261436,-1524.0,0.00034615,120]
[419193348,1775014261446,-1524.0,0.00034615,120]
[419193349,1775014261456,-1524.0,0.00034615,120]
[419193350,1775014261465,-1524.0,0.00034615,120]
[419193351,1775014261475,-1524.0,0.00034615,120]
[419193352,1775014261485,-1524.0,0.00034615,120]
[419193353,1775014261494,-1524.0,0.00034615,120]
[419193354,1775014261504,-1524.0,0.00034615,120]
[419193355,1775014261513,-1524.0,0.00034615,120]
[419193356,1775014261523,-1524.0,0.00034615,120]
[419193357,1775014261532,-1218.00855651,0.00034615,120]
[419193358,1775014261542,-152.0,0.00034615,120]
[419193359,1775014261552,-1524.0,0.00034615,120]
[419193360,1775014261562,-300.0,0.00034615,120]
[419193361,1775014261572,-609.890694,0.00034615,7]
[419193362,1775014261582,-609.890694,0.00034615,7]
[419193363,1775014261592,-609.890694,0.00034615,7]
[419193364,1775014261602,-609.890694,0.00034615,7]
[419193365,1775014261612,-151.0,0.00034615,7]
[419193366,1775014261621,-434.923258,0.00034615,7]
[419193367,1775014261630,-2900.360395,0.00034615,5]
[419193368,1775014261640,-151.0,0.00034615,7]
[419193369,1775014261650,-434.923258,0.00034615,7]
[419193370,1775014261660,-151.0,0.00034615,7]
[419193371,1775014261669,-2900.360395,0.00034615,5]
[419193372,1775014261679,-434.923258,0.00034615,7]
[419193373,1775014261688,-151.0,0.00034615,7]
[419193374,1775014261696,-151.0,0.00034615,7]
[419193375,1775014261705,-153.242848,0.00034615,7]
[419193376,1775014261715,-457.498785,0.00034615,7]
[419193377,1775014261724,-2900.360395,0.00034615,5]
[419193378,1775014261734,-151.0,0.00034615,7]
[419193379,1775014261744,-434.923258,0.00034615,7]
[419193380,1775014261753,-153.242848,0.00034615,7]
[419193381,1775014261763,-457.498785,0.00034615,7]
[419193382,1775014261772,-2900.360395,0.00034615,5]
[419193383,1775014261782,-151.0,0.00034615,7]
[419193384,1775014261794,-151.0,0.00034615,7]
[419193385,1775014261804,-153.242848,0.00034615,7]
[419193386,1775014261814,-457.498785,0.00034615,7]
[419193387,1775014261824,-151.0,0.00034615,7]
[419193388,1775014261834,-153.242848,0.00034615,7]
[419193389,1775014261844,-457.498785,0.00034615,7]
[419193390,1775014261854,-381.584379,0.00034615,7]
[419193391,1775014261864,-381.584379,0.00034615,7]
[419193392,1775014261873,-151.0,0.00034615,7]
[419193393,1775014261883,-151.0,0.00034615,7]
[419193394,1775014261893,-381.584379,0.00034615,7]
[419193395,1775014261903,-1736.096161,0.00034615,7]
[419193396,1775014261912,-151.0,0.00034615,7]
[419193397,1775014261922,-151.0,0.00034615,7]
[419193398,1775014261933,-151.0,0.00034615,7]
[419193399,1775014261944,-381.584379,0.00034615,7]
[419193400,1775014261954,-1736.096161,0.00034615,7]
[419193401,1775014261963,-151.0,0.00034615,7]
[419193402,1775014261973,-151.0,0.00034615,7]
[419193403,1775014261984,-283.450563,0.00034615,7]
[419193404,1775014261996,-151.0,0.00034615,7]
[419193405,1775014262007,-151.0,0.00034615,7]
[419193406,1775014262017,-1736.096161,0.00034615,7]
[419193407,1775014262028,-302.638113,0.00034615,7]
[419193408,1775014262039,-151.0,0.00034615,7]
[419193409,1775014262049,-1736.096161,0.00034615,7]
[419193410,1775014262059,-231.716991,0.00034615,7]
[419193411,1775014262069,-302.638113,0.00034615,7]
[419193412,1775014262078,-151.0,0.00034615,7]
[419193413,1775014262088,-231.716991,0.00034615,7]
[419193414,1775014262098,-1663.408312,0.00034615,7]
[419193415,1775014262108,-302.638113,0.00034615,7]
[419193416,1775014262118,-151.0,0.00034615,7]
[419193417,1775014262128,-244.3815,0.00034615,7]
[419193418,1775014262138,-592.636849,0.00034615,7]
[419193419,1775014262147,-231.716991,0.00034615,7]
[419193420,1775014262158,-1663.408312,0.00034615,7]
[419193421,1775014262168,-151.0,0.00034615,7]
[419193422,1775014262178,-302.638113,0.00034615,7]
[419193423,1775014262188,-244.3815,0.00034615,7]
[419193424,1775014262198,-592.636849,0.00034615,7]
[419193425,1775014262208,-231.716991,0.00034615,7]
[419193426,1775014262218,-1663.408312,0.00034615,7]